bitfinex/quotes_ETHUSD_20220215
["timestamp","ask_amount","ask_price","bid_price","bid_amount"]
[1644957505376,0.00302436,3111.5,3111.3,0.8034716]
[1644957506179,0.61173754,3112.1,3111.3,0.8034716]
[1644957506477,0.00302436,3111.6,3111.3,0.8034716]
[1644957506928,0.00302436,3111.6,3111.4,4.02344564]
[1644957507126,0.00302436,3111.6,3111.5,3.37084968]
[1644957507325,3.2,3112.1,3111.5,3.37084968]
[1644957507726,0.00302436,3111.7,3111.2,3.54033396]
[1644957507927,0.00302436,3111.7,3111.6,0.89439301]
[1644957508131,0.00302436,3111.7,3111.6,5.1437083]
[1644957508329,0.00302436,3111.7,3111.6,1.73609301]
[1644957508532,0.61173754,3112.8,3111.8,6.6]
[1644957508736,0.60957528,3113.8,3112.8,6.55]
[1644957508936,1.60377414,3114.0,3112.9,3.5]
[1644957508937,0.60957528,3114.0,3112.9,3.5]
[1644957509129,0.62166254,3114.4,3113.7,0.80271]
[1644957509333,0.01208726,3114.4,3113.7,2.46191]
[1644957509528,0.01208726,3114.4,3113.7,1.6592]
[1644957509727,0.01208726,3114.4,3113.8,22.3]
[1644957509927,0.251,3115.0,3113.9,1.0]
[1644957510131,0.60957528,3114.9,3113.7,2.0683441]
[1644957510332,0.001,3115.0,3113.4,0.463]
[1644957510528,0.001,3115.0,3113.4,3.5]
[1644957510784,0.001,3115.0,3113.0,1.6554025]
[1644957510785,0.60957528,3114.9,3113.0,1.6554025]
[1644957510978,4.91243528,3114.8,3113.2,0.5]
[1644957511178,0.60957528,3114.7,3113.2,0.5]
[1644957511379,0.60957528,3114.7,3113.0,1.1924025]
[1644957511380,4.23627651,3114.6,3113.0,1.1924025]
[1644957511577,1.07257528,3114.7,3113.0,1.1924025]
[1644957511578,3.33198518,3114.7,3113.0,1.1924025]
[1644957511779,0.74749051,3114.8,3113.0,1.1924025]
[1644957512177,0.01258051,3114.8,3113.0,1.1924025]
[1644957512377,0.01258051,3114.8,3113.5,0.97514397]
[1644957512378,0.88288426,3114.7,3113.5,0.97514397]
[1644957512578,0.0030168,3114.1,3113.8,0.8027506]
[1644957513380,0.01206539,3114.5,3113.0,1.6554025]
[1644957513582,1.04548528,3115.0,3113.0,1.6554025]
[1644957513780,1.04548528,3115.0,3113.0,1.1924025]
[1644957513781,0.0030168,3114.1,3113.0,1.1924025]
[1644957514630,1.90605,3114.4,3113.0,1.1924025]
[1644957515031,0.0030168,3113.7,3113.0,1.1924025]
[1644957515227,0.0030168,3113.7,3113.1,0.8029349]
[1644957515628,0.0030168,3113.7,3113.0,1.1924025]
[1644957515828,1.16831474,3114.1,3113.0,2.29573096]
[1644957515829,0.1883398,3114.0,3113.0,2.29573096]
[1644957516029,0.0030168,3113.6,3113.0,1.1924025]
[1644957516229,0.0030168,3113.6,3113.0,0.0041025]
[1644957517031,7.83267,3114.6,3113.1,1.6057304]
[1644957517234,0.00234389,3113.5,3113.1,1.6057304]
[1644957517831,0.00234389,3113.5,3113.4,0.99260904]
[1644957518030,0.00234389,3113.5,3113.1,1.6057304]
[1644957518031,0.278422,3113.2,3113.1,1.6057304]
[1644957518293,0.278422,3113.2,3113.0,0.0041025]
[1644957519196,3.478422,3113.2,3113.0,0.0041025]
[1644957519994,3.478422,3113.2,3112.8,2.58824545]
[1644957519995,3.478422,3113.2,3112.7,1.6058897]
[1644957520199,3.478422,3113.2,3112.3,4.4078]
[1644957520200,3.29977477,3113.1,3112.3,4.4078]
[1644957520394,3.478422,3113.2,3112.0,1.2413]
[1644957520593,3.29268916,3113.1,3112.0,1.2413]
[1644957520797,3.478422,3113.2,3112.0,1.2413]
[1644957520995,3.478422,3113.2,3112.1,3.28256302]
[1644957521196,3.478422,3113.2,3112.1,3.24593435]
[1644957521398,1.15654523,3113.0,3112.1,3.2580669]
[1644957521598,1.15654523,3113.0,3112.0,1.2413]
[1644957521797,1.15654523,3113.0,3111.9,3.50330188]
[1644957522035,0.0029791,3112.7,3111.9,3.49807329]
[1644957522231,0.0029791,3112.7,3112.0,1.0]
[1644957522432,0.0029791,3112.7,3112.1,3.29226243]
[1644957522630,0.0029791,3112.7,3111.9,3.55120578]
[1644957522830,0.0029791,3112.7,3112.1,0.8031824]
[1644957523030,3.478422,3113.2,3112.1,4.12354663]
[1644957523230,0.00231464,3112.5,3112.1,4.12354663]
[1644957523633,0.00231464,3112.5,3112.2,19.8]
[1644957523831,0.00231464,3112.5,3112.4,18.8]
[1644957524033,0.00231464,3112.5,3112.4,21.0559371]
[1644957524232,0.00436488,3113.1,3112.4,2.7189371]
[1644957524533,0.00231464,3112.6,3112.5,4.51014819]
[1644957524732,0.00231464,3112.6,3112.5,4.97314819]
[1644957524936,0.00231464,3112.6,3112.5,23.77314819]
[1644957525132,0.00231464,3112.6,3112.5,24.07314819]
[1644957525337,0.00231464,3112.6,3112.5,24.87605259]
[1644957525534,0.00436488,3113.1,3113.0,1.1481955]
[1644957525781,0.28278688,3113.2,3113.0,4.83565504]
[1644957525977,0.28278688,3113.2,3113.1,3.45348101]
[1644957526175,0.28278688,3113.2,3113.1,4.45348101]
[1644957526576,0.28278688,3113.2,3113.1,3.45348101]
[1644957527376,0.28278688,3113.2,3112.9,4.18160121]
[1644957527581,0.28278688,3113.2,3112.9,4.98452121]
[1644957527777,0.28278688,3113.2,3112.9,6.6295486]
[1644957527976,0.28525549,3113.2,3112.9,6.6295486]
[1644957528976,0.28278688,3113.2,3112.9,6.6295486]
[1644957529177,0.28525549,3113.2,3112.9,6.6295486]
[1644957530139,0.28278688,3113.2,3112.9,6.6295486]
[1644957530336,0.28278688,3113.2,3113.0,0.80287]
[1644957530536,0.28525549,3113.2,3113.1,3.4456369]
[1644957530734,0.28525549,3113.2,3113.1,4.2485069]
[1644957531337,0.28278688,3113.2,3113.1,3.4456369]
[1644957531536,0.28278688,3113.2,3112.9,4.96084465]
[1644957531737,3.48278688,3113.2,3112.9,4.96084465]
[1644957532838,3.48521531,3113.2,3113.0,1.0]
[1644957533039,3.48521531,3113.2,3113.1,3.30930493]
[1644957533475,3.48521531,3113.2,3113.1,4.30930493]
[1644957533679,3.48521531,3113.2,3113.1,3.30820156]
[1644957533878,3.48278688,3113.2,3113.1,4.30820156]
[1644957536921,3.47470438,3113.2,3113.1,4.30820156]
[1644957537124,3.47470438,3113.2,3113.1,4.42460095]
[1644957537523,3.47470438,3113.2,3113.1,3.42460095]
[1644957538224,3.47470438,3113.2,3113.1,2.44562781]
[1644957540323,3.47470438,3113.2,3113.0,0.11639939]
[1644957543484,3.47470438,3113.2,3113.0,3.34328396]
[1644957543684,3.47470438,3113.2,3113.0,4.14618396]
[1644957543986,3.47470438,3113.2,3113.1,5.30609788]
[1644957544183,3.47470438,3113.2,3113.1,6.25563187]
[1644957544425,3.47470438,3113.2,3113.1,25.05563187]
[1644957544626,3.47470438,3113.2,3113.1,6.25563187]
[1644957544830,3.4733387,3113.2,3113.1,6.25563187]
[1644957545827,3.4733387,3113.2,3113.1,7.25563187]
[1644957546626,3.4733387,3113.2,3113.1,2.67151338]
[1644957546829,3.4733387,3113.2,3113.1,0.11639939]
[1644957547033,3.4733387,3113.2,3112.4,3.21182]
[1644957547034,3.64550119,3113.2,3112.9,0.11639939]
[1644957547228,3.64550119,3113.2,3112.2,1.2012]
[1644957547229,0.17216249,3113.1,3112.2,1.2012]
[1644957547429,0.17216249,3113.1,3112.0,3.5]
[1644957547430,0.01298055,3112.9,3112.0,3.5]
[1644957547629,0.17216249,3112.8,3112.0,3.5]
[1644957547829,1.03930983,3112.5,3112.0,3.5]
[1644957548027,1.03930983,3112.5,3111.8,0.8033382]
[1644957548028,0.17216249,3112.4,3111.8,0.8033382]
[1644957548285,3.43513981,3112.4,3111.8,0.8033382]
[1644957548483,0.17216249,3112.3,3111.8,0.8033382]
[1644957549682,0.00244317,3112.2,3111.8,0.8033382]
[1644957549881,0.17460566,3112.2,3111.8,0.8033382]
[1644957550082,0.17460566,3112.2,3111.9,1.18583213]
[1644957550083,0.00244317,3112.2,3111.9,1.18583213]
[1644957550484,0.00244317,3112.2,3111.9,1.98910933]
[1644957550787,0.17168008,3112.5,3112.0,1.18583213]
[1644957550983,0.00244317,3112.2,3112.0,1.18583213]
[1644957551191,0.00244317,3112.2,3111.4,1.30169997]
[1644957551192,0.00244317,3112.2,3112.1,1.18583213]
[1644957551583,0.00244317,3112.2,3112.0,1.98910963]
[1644957551784,0.17217253,3112.7,3112.1,1.18583213]
[1644957552027,0.00436488,3112.8,3111.9,1.6064329]
[1644957552028,0.00244317,3112.3,3111.9,1.6064329]
[1644957552232,0.00244317,3112.3,3112.0,1.18539138]
[1644957553031,0.17217332,3112.7,3112.0,1.18539138]
[1644957553230,0.17217332,3112.7,3112.0,1.98862938]
[1644957553434,0.00243101,3112.3,3112.1,1.18539138]
[1644957554128,0.00243101,3112.3,3112.1,2.21498822]
[1644957554330,0.17217332,3112.3,3112.2,1.18539138]
[1644957554529,0.00243101,3112.4,3112.2,1.18539138]
[1644957554729,0.00243101,3112.4,3112.3,1.98859328]
[1644957555130,0.00243101,3112.4,3112.3,1.18785711]
[1644957555330,2.01214289,3112.3,3112.0,1.6063405]
[1644957555529,2.01214289,3112.3,3112.1,1.18819286]
[1644957556775,2.01214289,3112.3,3112.1,1.99135566]
[1644957556974,2.01214289,3112.3,3112.2,1.18819286]
[1644957558176,0.77428951,3112.3,3112.2,1.18819286]
[1644957563179,0.63752697,3112.3,3112.2,1.18819286]
[1644957563383,0.00436488,3112.9,3112.3,4.15]
[1644957563585,0.22201278,3112.8,3112.4,5.37293756]
[1644957563784,0.26897382,3113.2,3112.4,5.37293756]
[1644957563785,0.00436488,3112.7,3112.5,1.18819286]
[1644957564084,0.00436488,3112.7,3112.4,5.7907247]
[1644957564085,0.00436488,3113.1,3112.6,1.99110286]
[1644957564280,0.26897382,3113.2,3112.4,2.06882]
[1644957564281,0.00436488,3112.9,3112.7,1.18819286]
[1644957564481,0.22199344,3112.8,3112.4,2.06882]
[1644957564682,0.22199344,3112.7,3112.6,1.6058349]
[1644957564880,0.22199344,3112.8,3112.6,4.35082153]
[1644957565083,0.00436488,3113.1,3112.7,1.13912663]
[1644957565282,0.00436488,3112.8,3112.7,1.13912663]
[1644957565482,0.22203644,3112.8,3112.7,1.13912663]
[1644957565685,0.00436488,3112.9,3112.7,1.13912663]
[1644957565881,0.22203644,3112.8,3112.7,2.74508333]
[1644957566682,0.00089358,3112.9,3112.7,2.74508333]
[1644957566949,0.00525846,3112.9,3112.8,1.13914139]
[1644957567144,3.4272949,3112.9,3112.8,1.13914139]
[1644957567340,3.42293002,3112.9,3112.8,1.13914139]
[1644957567540,3.42203644,3112.9,3112.8,1.13914139]
[1644957569643,3.42203644,3112.9,3112.7,0.8029767]
[1644957569842,0.22203644,3112.8,3112.7,0.8029767]
[1644957570674,0.22203644,3112.8,3112.7,1.94216771]
[1644957571276,3.20436488,3112.9,3112.7,21.74216771]
[1644957571485,3.20733535,3112.9,3112.8,1.13919101]
[1644957571776,3.42376046,3112.9,3112.8,1.13919101]
[1644957572177,3.42376046,3112.9,3112.6,0.463]
[1644957572478,0.22078999,3112.8,3112.7,1.14052085]
[1644957572680,0.22078999,3112.8,3112.2,1.1821]
[1644957572876,0.22078999,3112.8,3112.3,1.14056453]
[1644957573077,0.22078999,3112.8,3112.4,1.14056453]
[1644957573279,0.22078999,3112.8,3111.9,0.80316]
[1644957573479,0.85030071,3112.7,3112.0,1.14067586]
[1644957573676,0.85030071,3112.7,3112.1,1.14067586]
[1644957573677,0.22078999,3112.6,3112.1,1.14067586]
[1644957573875,0.22078999,3112.6,3111.8,1.149]
[1644957574080,1.60667,3112.5,3111.9,1.14072254]
[1644957574277,0.22078999,3112.4,3112.0,1.14072254]
[1644957574530,0.22078999,3112.4,3112.1,1.14072254]
[1644957574728,0.22078999,3112.4,3111.5,1.02537214]
[1644957574933,1.02412999,3112.4,3111.6,1.14055262]
[1644957575132,0.22078999,3112.3,3111.6,1.14055262]
[1644957575329,0.22078999,3112.3,3111.6,2.14055262]
[1644957575534,0.22078999,3112.2,3111.7,1.14055262]
[1644957575931,0.22078999,3112.2,3111.6,2.14055262]
[1644957576131,0.22078999,3112.2,3111.7,1.14055262]
[1644957576330,0.22078999,3112.2,3111.8,1.14055262]
[1644957576531,0.22078999,3112.2,3111.9,1.14055262]
[1644957576735,0.22078999,3112.2,3112.0,1.14055262]
[1644957576931,0.22078999,3112.2,3112.1,1.14055262]
[1644957577330,0.22078999,3112.2,3111.6,2.14055262]
[1644957577531,0.22078999,3112.2,3111.6,1.14055262]
[1644957578582,3.42078999,3112.2,3111.6,1.14055262]
[1644957578781,0.22078999,3112.1,3111.6,1.14055262]
[1644957579786,4.28040926,3112.1,3111.6,1.14055262]
[1644957579980,4.28040926,3112.1,3111.1,3.12468173]
[1644957579981,0.22078999,3112.0,3111.7,1.14055262]
[1644957580183,0.37034255,3111.6,3111.1,1.1478]
[1644957580381,1.17389255,3111.6,3111.2,1.14037853]
[1644957580682,0.37034255,3111.6,3111.3,1.14037853]
[1644957580881,0.37034255,3111.6,3111.4,1.14037853]
[1644957581081,0.37034255,3111.6,3111.5,1.14037853]
[1644957581486,0.37034255,3111.6,3111.2,0.61095289]
[1644957581680,0.37034255,3111.6,3111.2,1.75133142]
[1644957581931,0.37034255,3111.6,3111.3,1.14037853]
[1644957582628,0.37034255,3111.6,3111.4,0.94573237]
[1644957582829,0.37034255,3111.6,3111.5,1.14037853]
[1644957583230,3.2,3112.2,3112.1,0.62965745]
[1644957583430,3.41315182,3112.2,3112.1,1.77003598]
[1644957584128,3.41315182,3112.2,3112.1,0.62965745]
[1644957584327,3.41315182,3112.2,3111.4,2.07893237]
[1644957584538,3.55234973,3112.1,3111.5,1.14873942]
[1644957584732,0.55,3111.9,3110.8,0.01848073]
[1644957584931,5.0,3111.5,3110.9,1.12653331]
[1644957585228,3.08757592,3111.4,3110.8,0.01848073]
[1644957585431,0.9331452,3111.2,3110.8,0.01848073]
[1644957585678,0.9331452,3111.2,3110.7,7.28]
[1644957585877,2.8409352,3111.2,3110.7,7.28]
[1644957586279,2.8409352,3111.2,3110.6,0.01848095]
[1644957586575,1.60779,3111.1,3110.6,0.01848095]
[1644957586777,0.3,3111.0,3110.1,7.28]
[1644957586977,1.60769,3110.9,3110.4,0.0045446]
[1644957587182,1.3796,3111.3,3110.4,0.0045446]
[1644957587378,0.25,3111.3,3110.4,0.0045446]
[1644957587576,0.25,3111.3,3110.4,0.61549749]
[1644957587781,0.25,3111.3,3110.5,24.74998743]
[1644957587978,0.25,3111.3,3110.6,1.35230243]
[1644957588277,0.25,3111.3,3110.8,1.18850644]
[1644957588483,0.25,3111.3,3110.9,4.15196078]
[1644957588677,0.25,3111.3,3110.9,4.61496078]
[1644957589081,0.25,3111.3,3110.9,4.15196078]
[1644957589279,0.25,3111.3,3110.7,3.58875198]
[1644957589740,0.25,3111.3,3110.5,3.7539142]
[1644957590234,0.25,3111.3,3110.6,1.0]
[1644957590435,3.45,3111.3,3110.6,1.0]
[1644957590635,3.45,3111.3,3110.5,3.49266602]
[1644957591238,3.45,3111.3,3110.6,0.8035]
[1644957591437,3.45,3111.3,3110.7,3.27120141]
[1644957591935,3.45,3111.3,3110.8,1.08084674]
[1644957592134,3.45,3111.3,3110.9,3.47150648]
[1644957593578,3.45,3111.3,3111.1,18.8]
[1644957593579,3.2,3111.3,3111.1,18.8]
[1644957593776,3.2,3111.3,3111.2,24.57163623]
[1644957594180,3.2,3111.3,3111.2,25.57163623]
[1644957594576,3.2,3111.3,3111.2,25.37491623]
[1644957594777,3.2,3111.3,3111.2,6.57491623]
[1644957596278,3.2,3111.3,3111.2,5.2226138]
[1644957596778,3.2,3111.3,3111.2,6.57490198]
[1644957597427,0.2387073,3111.3,3111.2,25.37490198]
[1644957597631,4.69642892,3112.6,3111.6,0.80321]
[1644957597632,0.25,3112.6,3111.6,0.80321]
[1644957597826,0.25,3112.6,3111.7,5.3674634]
[1644957598028,0.25296937,3112.6,3111.7,5.3674634]
[1644957598628,0.25296937,3112.6,3111.7,4.5642434]
[1644957598826,0.25,3112.6,3111.7,4.5642434]
[1644957599027,0.25297023,3112.6,3111.7,4.5642434]
[1644957600029,0.25,3112.6,3111.7,4.5642434]
[1644957600234,0.25297023,3112.6,3111.7,4.5642434]
[1644957600880,0.25297023,3112.6,3111.3,1.2069]
[1644957601087,0.80336,3112.4,3111.3,1.2069]
[1644957601282,1.10336,3112.4,3111.1,2.3801]
[1644957601479,0.3,3112.4,3111.1,2.3801]
[1644957601679,1.46254532,3112.6,3111.0,7.28]
[1644957601881,1.0796204,3112.0,3111.0,7.28]
[1644957602082,0.25,3111.8,3111.0,7.28]
[1644957602287,0.80355,3111.7,3111.0,7.28]
[1644957602682,0.80355,3111.7,3110.8,0.01819143]
[1644957602889,1.6071077,3111.7,3110.8,0.01819143]
[1644957603083,1.6071777,3111.7,3110.8,0.01819143]
[1644957603282,1.09473523,3111.3,3110.8,0.01819143]
[1644957603486,0.89291698,3111.4,3111.3,0.36571501]
[1644957605032,0.89291698,3111.4,3111.3,1.46850834]
[1644957605232,0.8036355,3111.5,3111.3,1.46850834]
[1644957605437,0.25,3111.8,3111.4,1.10279333]
[1644957605632,0.25599008,3111.7,3111.4,1.10279333]
[1644957607333,0.25599008,3111.7,3111.3,0.36571501]
[1644957607940,1.05953008,3111.7,3111.3,0.36571501]
[1644957608192,1.05957778,3111.6,3111.3,0.36571501]
[1644957608387,0.8035877,3111.6,3111.4,1.10245861]
[1644957609388,1.6071477,3111.6,3111.4,1.10245861]
[1644957609587,1.9071477,3111.6,3111.3,0.36571501]
[1644957610388,2.7107977,3111.6,3111.3,0.36571501]
[1644957610591,0.80365,3111.5,3111.3,0.36571501]
[1644957610789,1.6072828,3111.5,3111.3,0.36571501]
[1644957610988,1.3526734,3111.4,3111.3,0.36571501]
[1644957611290,1.6526734,3111.4,3111.3,0.36571501]
[1644957612132,0.80362,3111.2,3110.3,0.61095289]
[1644957612331,0.25,3111.0,3110.7,0.01820306]
[1644957612531,0.25,3111.0,3110.8,1.09616979]
[1644957612930,1.85761,3111.0,3110.8,1.09616979]
[1644957613330,0.80381,3110.9,3110.8,1.09616979]
[1644957613730,1.10381,3110.9,3110.8,1.09616979]
[1644957614330,1.10381,3110.9,3110.5,1.09616979]
[1644957614533,1.10381,3110.9,3110.6,1.09616979]
[1644957614731,0.80377,3110.8,3110.7,1.09616979]
[1644957615131,1.95615094,3110.8,3110.5,1.09616979]
[1644957615431,2.75994094,3110.8,3110.5,1.09616979]
[1644957615690,3.56383094,3110.8,3110.5,1.09616979]
[1644957615885,3.56383094,3110.8,3110.6,1.09616979]
[1644957616086,3.56383094,3110.8,3110.7,1.09616979]
[1644957616293,0.80386,3110.6,3110.4,0.00455104]
[1644957616486,1.60772,3110.6,3110.5,1.09621669]
[1644957616888,0.80386,3110.6,3110.5,1.09621669]
[1644957617090,0.80386,3110.6,3110.4,0.00455103]
[1644957617288,0.803852,3110.7,3110.5,1.09621669]
[1644957617588,0.803852,3110.7,3110.6,1.09621669]
[1644957617787,0.803852,3110.7,3110.4,0.00455103]
[1644957617788,1.45238094,3110.8,3110.4,0.00455103]
[1644957617987,1.45238094,3110.8,3110.5,1.09621669]
[1644957618193,1.45238094,3110.8,3110.6,1.09621669]
[1644957618388,1.45238094,3110.8,3110.7,1.09621669]
[1644957618389,0.3,3110.8,3110.7,1.09621669]
[1644957618588,0.55,3111.0,3110.7,1.09621669]
[1644957618887,0.55,3111.0,3110.8,1.09621669]
[1644957618888,1.3536709,3111.0,3110.8,1.09621669]
[1644957619089,1.3536709,3111.0,3110.9,1.09621669]
[1644957619289,1.3536709,3111.0,3110.3,4.31440187]
[1644957619290,1.61719749,3111.0,3110.3,4.31440187]
[1644957619534,1.3536709,3111.0,3110.4,1.1007678]
[1644957619938,1.0536709,3111.0,3110.4,1.1007678]
[1644957620335,1.0536709,3111.0,3110.4,1.09621669]
[1644957620740,1.0536709,3111.0,3110.4,1.10076775]
[1644957621136,1.0536709,3111.0,3110.5,1.09621669]
[1644957621336,1.0536709,3111.0,3110.4,1.10076775]
[1644957621737,1.0536709,3111.0,3110.4,1.09621669]
[1644957621937,1.0536709,3111.0,3110.4,1.71172064]
[1644957622138,1.3536709,3111.0,3110.5,1.09621669]
[1644957622337,2.41128,3110.9,3110.6,1.09621669]
[1644957622639,3.5150241,3110.9,3110.7,1.09621669]
[1644957622839,1.90752,3110.9,3110.8,1.09621669]
[1644957623038,1.10378,3110.9,3110.8,1.0943924]
[1644957623287,0.85867534,3110.6,3110.4,0.00455107]
[1644957623488,1.15676704,3110.8,3110.2,6.23026608]
[1644957623686,0.80381,3110.6,3110.1,0.0182059]
[1644957624084,0.80381,3110.6,3109.7,7.89507749]
[1644957624282,0.80381,3110.6,3109.7,7.89095289]
[1644957624482,0.25,3110.5,3109.7,7.89095289]
[1644957624684,2.4119398,3110.4,3109.7,7.89095289]
[1644957625083,0.97978629,3110.0,3109.7,7.28]
[1644957625284,0.804,3109.9,3109.7,7.2841246]
[1644957625483,0.804,3109.9,3109.7,7.89507749]
[1644957625683,0.804,3109.9,3109.7,7.89095289]
[1644957625887,0.804,3109.9,3109.7,7.89507749]
[1644957626084,0.804,3109.9,3109.7,7.2841246]
[1644957626285,0.804,3109.9,3109.7,7.89507749]
[1644957626688,0.804,3109.9,3109.7,0.0041246]
[1644957626689,0.9085,3109.9,3109.7,0.0041246]
[1644957626948,0.9085,3109.9,3109.6,0.00285258]
[1644957626949,2.0125794,3109.9,3109.6,0.00285258]
[1644957627544,0.80413,3109.8,3109.6,0.00285258]
[1644957627745,0.3,3109.7,3109.1,0.0041246]
[1644957627946,0.94072371,3109.5,3109.1,0.01195547]
[1644957628145,0.25,3109.4,3109.1,0.01195547]
[1644957628946,0.25,3109.4,3109.1,0.0041246]
[1644957629147,0.25,3109.4,3109.1,0.00608234]
[1644957630149,0.25,3109.4,3109.1,0.0041246]
[1644957630453,0.25,3109.4,3109.1,0.00697982]
[1644957630687,0.25,3109.4,3109.1,0.00285522]
[1644957631284,0.25,3109.4,3108.9,0.0187856]
[1644957631486,0.25,3109.4,3109.1,0.00285522]
[1644957632591,0.25,3109.4,3108.9,0.0187856]
[1644957632786,0.25,3109.4,3109.1,0.00285522]
[1644957633789,0.25,3109.4,3108.9,0.0187856]
[1644957633989,1.0540825,3109.4,3109.1,0.00285522]
[1644957634633,0.25,3109.4,3109.1,0.00285522]
[1644957634839,0.25,3109.4,3108.9,0.0187856]
[1644957635234,0.25,3109.4,3109.1,0.00285522]
[1644957636035,1.05411,3109.4,3108.9,0.0187856]
[1644957636239,0.8040971,3109.3,3108.9,0.0187856]
[1644957636435,0.8040971,3109.3,3109.1,0.00285522]
[1644957637237,0.8040971,3109.3,3108.9,0.0187856]
[1644957637637,0.25,3109.4,3109.0,0.00285525]
[1644957638486,0.25,3109.4,3108.9,0.0187856]
[1644957638690,1.0540938,3109.4,3108.9,0.0187856]
[1644957639686,1.92610784,3109.1,3108.9,0.0187856]
[1644957642848,1.12195564,3109.1,3108.9,0.0187856]
[1644957643139,1.12195564,3109.1,3109.0,1.05935622]
[1644957643338,1.12195564,3109.1,3109.0,1.06348082]
[1644957643639,0.25,3109.4,3109.0,4.37802705]
[1644957643839,0.25,3109.4,3109.2,0.80392]
[1644957644042,0.25,3109.4,3109.3,1.05935622]
[1644957644239,0.25,3110.1,3109.3,4.33576997]
[1644957644437,0.25,3110.1,3109.4,1.05935622]
[1644957644639,1.29626616,3110.1,3109.5,1.06348082]
[1644957644839,1.29626616,3110.1,3109.2,0.00697586]
[1644957645040,1.29626616,3110.1,3109.6,0.0041246]
[1644957645340,1.29626616,3110.1,3109.5,0.80388]
[1644957645538,1.29626616,3110.1,3109.6,1.03632216]
[1644957645789,1.29626616,3110.1,3109.7,4.42467057]
[1644957645790,0.25,3110.1,3109.7,4.42467057]
[1644957645994,0.25,3110.1,3109.8,1.03219756]
[1644957646395,0.25,3110.1,3109.7,0.0041246]
[1644957646601,3.56905389,3110.1,3109.6,0.00285098]
[1644957646793,3.86905389,3110.1,3109.6,0.00285098]
[1644957646992,0.80395,3110.0,3108.9,0.0187856]
[1644957647193,1.60839,3109.8,3109.7,0.00195424]
[1644957647393,5.34608349,3109.8,3109.7,0.00195424]
[1644957647791,6.53552856,3109.8,3109.7,0.00195424]
[1644957648193,1.0642066,3109.0,3108.9,0.0187856]
[1644957649634,1.8684166,3109.0,3108.9,0.0187856]
[1644957650635,5.39420079,3109.0,3108.9,0.0187856]
[1644957651237,5.69420079,3109.0,3108.9,0.0187856]
[1644957654090,5.39420079,3109.0,3108.9,0.0187856]
[1644957654697,2.1684166,3109.0,3108.9,0.0187856]
[1644957655695,5.49320292,3109.0,3108.9,0.0187856]
[1644957657742,5.79320292,3109.0,3108.9,0.0187856]
[1644957658739,5.49320292,3109.0,3108.9,0.0187856]
[1644957659839,5.79320292,3109.0,3108.9,0.0187856]
[1644957661894,2.4684166,3109.0,3108.9,0.0187856]
[1644957662095,2.1684166,3109.0,3108.9,0.0187856]
[1644957662302,0.80421,3109.0,3108.9,0.0187856]
[1644957662499,0.8039787,3109.4,3108.9,0.0187856]
[1644957662698,2.3564,3110.0,3108.9,0.0187856]
[1644957662699,2.1064,3110.0,3109.0,19.263]
[1644957662897,2.7199,3110.1,3109.1,0.0041246]
[1644957662898,0.25,3110.1,3109.1,0.0041246]
[1644957663104,0.25,3110.1,3109.2,0.463]
[1644957663296,0.25,3110.1,3109.4,0.92469601]
[1644957663503,1.05386,3110.1,3109.5,0.0041246]
[1644957663697,0.8038564,3109.9,3109.3,0.0041246]
[1644957663897,2.4116791,3110.0,3109.9,1.2192696]
[1644957664941,5.70078717,3110.0,3109.9,1.2192696]
[1644957665137,5.70221756,3110.0,3109.9,1.2192696]
[1644957665337,6.30221756,3110.0,3109.9,1.2192696]
[1644957665936,5.70221756,3110.0,3109.9,1.2192696]
[1644957666136,2.7116791,3110.0,3109.9,1.2192696]
[1644957666637,3.03946315,3110.0,3109.9,1.2192696]
[1644957667035,2.73946315,3110.0,3109.9,1.2192696]
[1644957667237,0.80386,3110.0,3109.9,2.25161]
[1644957667437,1.05383,3110.1,3110.0,0.00086792]
[1644957667639,1.05383,3110.1,3110.0,1.03320832]
[1644957668035,1.38205688,3110.1,3110.0,1.03320832]
[1644957668294,2.18595688,3110.1,3110.0,0.00086792]
[1644957669593,2.13595688,3110.1,3110.0,1.03391553]
[1644957669891,2.13595688,3110.1,3110.0,0.00086792]
[1644957671093,2.13595688,3110.1,3110.0,1.03403385]
[1644957671291,0.52822688,3110.1,3110.0,1.03403385]
[1644957672343,1.33210688,3110.1,3110.0,1.03403385]
[1644957672540,4.53210688,3110.1,3110.0,1.03403385]
[1644957672741,4.53210688,3110.1,3110.0,0.00086792]
[1644957673543,7.79327579,3110.1,3110.0,0.00086792]
[1644957673740,4.53210688,3110.1,3110.0,0.00086792]
[1644957674340,4.83210688,3110.1,3110.0,0.00086792]
[1644957674742,8.42325691,3110.1,3110.0,0.00086792]
[1644957674944,1.60844,3110.0,3109.9,0.00285704]
[1644957675147,7.85588038,3110.0,3109.9,0.00285704]
[1644957675886,1.60845,3109.9,3108.9,0.0187856]
[1644957676086,1.11430925,3109.0,3108.9,0.0187856]
[1644957676287,0.80421,3109.1,3108.9,0.0187856]
[1644957676487,0.25,3109.2,3108.9,0.62973849]
[1644957676686,0.25,3109.2,3109.0,1.01519196]
[1644957676889,0.25,3109.2,3109.1,1.01106736]
[1644957677488,0.25,3109.2,3109.0,1.01106736]
[1644957677692,1.05412,3109.2,3109.0,1.01106736]
[1644957677993,1.05412,3109.2,3109.0,1.62614485]
[1644957678189,0.25,3109.2,3109.1,1.01106736]
[1644957678390,9.2371,3110.1,3109.1,1.01106736]
[1644957678590,0.25,3109.9,3109.2,1.01106736]
[1644957678788,0.35151773,3109.8,3109.3,1.01106736]
[1644957678989,0.35151773,3109.8,3109.3,1.01519196]
[1644957679189,1.15553773,3109.8,3109.4,1.01106736]
[1644957679436,1.35800762,3109.7,3109.5,0.0041246]
[1644957680037,1.15562773,3109.6,3109.5,0.0041246]
[1644957680237,1.15562773,3109.6,3109.4,0.00285735]
[1644957680437,0.80411,3109.6,3109.4,0.00285735]
[1644957680641,0.80411,3109.6,3109.4,1.01106248]
[1644957681239,0.35158726,3109.5,3109.4,1.01106248]
[1644957682046,3.63973387,3109.5,3109.4,1.01106248]
[1644957682240,3.63973387,3109.5,3109.3,0.00607912]
[1644957682241,4.74405387,3109.5,3109.3,0.00607912]
[1644957682440,4.97875805,3109.4,3109.3,0.00195452]
[1644957683040,3.06456726,3109.4,3109.2,1.01133916]
[1644957683292,3.06456726,3109.4,3109.2,1.01329374]
[1644957683293,1.15591726,3109.3,3109.2,1.01329374]
[1644957683586,1.75591726,3109.3,3109.2,0.00607918]
[1644957683788,1.45591726,3109.3,3109.2,1.01329374]
[1644957683990,1.45591726,3109.3,3109.2,0.00607918]
[1644957684190,1.15591726,3109.3,3108.9,0.0187856]
[1644957684389,0.35164072,3109.2,3109.0,1.01121168]